bitfinex/quotes_SOLUSD_20250829
["timestamp","ask_amount","ask_price","bid_price","bid_amount"]
[1756497548141,8.98892124,203.52,203.48,40.42]
[1756497548142,8.78892124,203.5,203.48,40.42]
[1756497548340,0.2,203.52,203.49,0.72]
[1756497548511,0.2,203.52,203.46,79.6]
[1756497548831,8.98892124,203.52,203.48,0.72]
[1756497549009,0.2,203.52,203.48,0.72]
[1756497549209,0.2,203.52,203.49,0.72]
[1756497550212,8.98892124,203.52,203.46,5.63475045]
[1756497550414,8.78892124,203.49,203.44,0.72]
[1756497550621,8.78892124,203.49,203.45,40.4]
[1756497550934,8.78892124,203.47,203.44,0.72]
[1756497551111,8.78892124,203.49,203.45,40.4]
[1756497551937,8.78892124,203.48,203.45,40.4]
[1756497552545,0.2,203.52,203.45,40.4]
[1756497552546,8.78892124,203.49,203.46,0.72]
[1756497552920,8.78892124,203.49,203.45,40.4]
[1756497553118,8.78892124,203.49,203.46,0.72]
[1756497553318,8.78892124,203.47,203.4,0.72]
[1756497553532,26.0,203.5,203.32,0.72]
[1756497553533,8.78892124,203.41,203.32,0.72]
[1756497553733,8.78892124,203.35,203.29,8.78892124]
[1756497553936,8.78892124,203.33,203.3,0.72]
[1756497554134,8.78892124,203.33,203.27,52.00739912]
[1756497554332,8.78892124,203.33,203.28,0.72]
[1756497554552,8.78892124,203.32,203.29,41.16]
[1756497554845,8.78892124,203.32,203.3,41.14]
[1756497555142,8.78892124,203.31,203.26,0.72]
[1756497555322,8.78892124,203.29,203.27,40.42]
[1756497555515,8.78892124,203.3,203.28,0.72]
[1756497555739,8.78892124,203.29,203.27,0.03]
[1756497556051,4.91738788,203.36,203.27,0.03]
[1756497556249,8.78892124,203.29,203.28,40.42]
[1756497556492,18.51298189,203.36,203.27,0.03]
[1756497556739,4.91738788,203.36,203.27,5.66939486]
[1756497556942,4.91738788,203.36,203.28,40.4]
[1756497556943,8.78892124,203.29,203.28,40.4]
[1756497557521,8.78892124,203.29,203.27,0.03]
[1756497557862,8.78892124,203.28,203.27,40.43]
[1756497558023,8.78892124,203.28,203.27,0.03]
[1756497558221,17.57784248,203.28,203.27,0.03]
[1756497558742,8.78892124,203.28,203.27,0.03]
[1756497558947,26.0,203.29,203.27,0.03]
[1756497559255,8.78892124,203.28,203.27,0.03]
[1756497560256,17.57784248,203.28,203.27,0.03]
[1756497560433,8.78892124,203.28,203.27,0.03]
[1756497560940,17.57784248,203.28,203.27,0.03]
[1756497561150,31.17343649,203.28,203.27,0.03]
[1756497561347,39.59559401,203.26,203.25,0.03]
[1756497561597,26.0,203.23,203.21,0.1]
[1756497561758,22.38451525,203.22,203.17,0.13988496]
[1756497561966,26.0,203.23,203.18,0.72]
[1756497562158,8.78892124,203.21,203.18,0.72]
[1756497562585,8.78892124,203.21,203.17,0.13988496]
[1756497563271,26.0,203.25,203.17,0.13988496]
[1756497563464,34.78892124,203.21,203.17,0.13988496]
[1756497563664,34.78892124,203.21,203.17,5.06185682]
[1756497563882,34.78892124,203.21,203.17,0.13988496]
[1756497564064,34.78892124,203.21,203.17,5.06178567]
[1756497564266,8.78892124,203.21,203.17,5.06178567]
[1756497564985,8.78892124,203.23,203.2,0.75]
[1756497565298,8.78892124,203.22,203.21,0.72]
[1756497565672,8.78892124,203.22,203.2,0.03]
[1756497565854,8.78892124,203.21,203.2,0.75]
[1756497566285,8.78892124,203.21,203.2,0.03]
[1756497566459,8.78892124,203.22,203.2,0.03]
[1756497566659,8.78892124,203.22,203.2,0.75]
[1756497566969,8.78892124,203.22,203.21,0.72]
[1756497567279,8.78892124,203.22,203.2,0.03]
[1756497567578,8.78892124,203.22,203.21,0.72]
[1756497567762,8.78892124,203.23,203.21,0.72]
[1756497567964,13.59559401,203.21,203.2,0.03]
[1756497568270,13.59559401,203.21,203.17,0.13988496]
[1756497568271,39.59559401,203.18,203.17,0.13988496]
[1756497568469,57.17343649,203.18,203.17,0.13988496]
[1756497568654,48.38451525,203.18,203.17,0.13988496]
[1756497568857,88.98451525,203.18,203.17,0.13988496]
[1756497569059,71.77343649,203.18,203.03,0.11336659]
[1756497569262,26.0,203.14,203.04,0.72]
[1756497569474,8.78892124,203.1,203.04,9.50892124]
[1756497569683,8.78892124,203.13,203.07,8.78892124]
[1756497569882,8.78892124,203.13,203.03,17.8447235]
[1756497569883,8.78892124,203.12,203.08,0.72]
[1756497570087,8.78892124,203.13,203.08,0.72]
[1756497570299,26.0,203.18,203.09,8.78892124]
[1756497570598,8.78892124,203.15,203.1,0.72]
[1756497570759,8.78892124,203.16,203.03,5.03873292]
[1756497570964,8.78892124,203.07,203.05,4.92489534]
[1756497571190,8.78892124,203.06,203.05,5.59489534]
[1756497571562,4.92150204,203.19,203.05,5.59489534]
[1756497571764,26.0,203.22,203.06,0.67]
[1756497571965,4.92029128,203.24,203.06,0.67]
[1756497572172,34.78892124,203.16,203.06,0.67]
[1756497572491,26.0,203.16,203.06,0.67]
[1756497572686,8.78892124,203.09,203.06,0.67]
[1756497572881,8.78892124,203.1,203.06,0.67]
[1756497573082,8.78892124,203.1,203.07,5.5944103]
[1756497573290,34.78892124,203.16,203.07,0.67]
[1756497573467,8.78892124,203.08,203.04,0.67]
[1756497573671,8.78892124,203.05,203.04,0.67]
[1756497573880,8.78892124,203.06,203.04,0.67]
[1756497574393,8.78892124,203.05,203.03,0.11336659]
[1756497574567,26.0,203.13,203.03,0.11336659]
[1756497574762,13.59559401,203.15,203.04,0.67]
[1756497574763,26.0,203.11,203.04,0.67]
[1756497575178,8.78892124,203.06,203.04,0.67]
[1756497575408,8.78892124,203.09,203.04,9.45892124]
[1756497575564,26.0,203.19,203.07,8.78892124]
[1756497575770,5.4083465,203.24,203.09,8.78892124]
[1756497576090,41.02,203.24,203.13,8.78892124]
[1756497576304,8.78892124,203.19,203.14,0.67]
[1756497576508,41.02,203.25,203.14,0.67]
[1756497576509,26.0,203.22,203.14,0.67]
[1756497576708,8.78892124,203.17,203.14,0.67]
[1756497577023,26.0,203.22,203.07,31.5944103]
[1756497577024,8.78892124,203.15,203.07,31.5944103]
[1756497577312,26.0,203.18,203.11,8.78892124]
[1756497577485,8.78892124,203.16,203.11,8.78892124]
[1756497577681,8.78892124,203.13,203.07,5.5944103]
[1756497577881,8.78892124,203.15,203.09,8.78892124]
[1756497578080,8.78892124,203.17,203.12,8.78892124]
[1756497578301,8.78892124,203.17,203.12,9.45892124]
[1756497578512,8.78892124,203.17,203.12,8.78892124]
[1756497578685,8.78892124,203.17,203.08,13.59559401]
[1756497578883,8.78892124,203.17,203.13,0.67]
[1756497579190,0.2962,203.15,203.14,14.38163463]
[1756497579803,0.2962,203.15,203.14,13.71163463]
[1756497579992,0.2962,203.15,203.14,14.38163463]
[1756497580180,12.29719657,203.3,203.14,40.28401213]
[1756497580181,4.91890156,203.3,203.14,40.28401213]
[1756497580388,4.92077562,203.31,203.15,14.75784111]
[1756497580608,8.78892124,203.26,203.2,8.78892124]
[1756497580789,8.78892124,203.27,203.22,8.78892124]
[1756497580980,32.29168198,203.39,203.23,0.67]
[1756497581316,8.78892124,203.29,203.23,0.67]
[1756497581485,8.78892124,203.3,203.24,8.78892124]
[1756497581818,8.78892124,203.31,203.26,8.78892124]
[1756497581984,26.0,203.33,203.25,0.67]
[1756497582183,26.0,203.33,203.22,17.22271429]
[1756497582184,8.78892124,203.27,203.22,4.92077551]
[1756497582408,8.78892124,203.26,203.22,4.92077551]
[1756497582609,26.0,203.24,203.13,0.67]
[1756497582887,8.78892124,203.19,203.13,9.45892124]
[1756497583087,26.0,203.27,203.17,8.78892124]
[1756497583291,8.78892124,203.22,203.18,0.67]
[1756497583498,8.78892124,203.22,203.18,41.95]
[1756497583688,26.0,203.27,203.18,41.95]
[1756497583689,26.0,203.23,203.18,41.28]
[1756497583894,8.78892124,203.21,203.18,41.28]
[1756497584285,8.78892124,203.22,203.16,8.78892124]
[1756497584514,8.78892124,203.22,203.15,17.22864878]
[1756497584515,8.78892124,203.22,203.18,0.67]
[1756497584686,8.78892124,203.23,203.19,0.67]
[1756497585019,8.78892124,203.2,203.18,41.3]
[1756497585227,26.0,203.27,203.16,4.92222118]
[1756497585228,8.78892124,203.19,203.16,4.92222118]
[1756497585435,8.78892124,203.18,203.15,4.92246475]
[1756497585726,8.78892124,203.21,203.17,0.67]
[1756497586013,8.78892124,203.18,203.13,5.59277828]
[1756497586214,8.78892124,203.15,203.13,41.32]
[1756497586511,26.0,203.21,203.13,0.67]
[1756497586707,8.78892124,203.17,203.14,0.67]
[1756497586887,26.0,203.21,203.14,42.03]
[1756497586888,8.78892124,203.18,203.14,42.03]
[1756497587089,8.78892124,203.17,203.14,42.03]
[1756497587329,26.0,203.21,203.15,5.59247108]
[1756497587489,8.78892124,203.2,203.15,46.95247108]
[1756497587830,26.0,203.21,203.16,0.67]
[1756497588119,8.78892124,203.19,203.16,0.67]
[1756497588485,8.78892124,203.19,203.16,42.01]
[1756497588686,8.78892124,203.23,203.17,9.45892124]
[1756497588926,26.0,203.25,203.18,0.67]
[1756497589230,8.78892124,203.25,203.2,4.92125984]
[1756497589423,8.78892124,203.26,203.21,0.67]
[1756497589717,18.51346555,203.34,203.21,0.67]
[1756497590210,8.78892124,203.25,203.22,41.32]
[1756497590394,9.92626443,203.35,203.23,0.67]
[1756497590599,8.78892124,203.28,203.24,41.3]
[1756497590803,8.78892124,203.28,203.23,0.67]
[1756497590804,8.78892124,203.29,203.2,17.22440944]
[1756497591004,13.59559401,203.34,203.24,0.67]
[1756497591217,8.78892124,203.29,203.26,4.91980714]
[1756497591525,8.78892124,203.4,203.26,4.91980714]
[1756497591709,8.78892124,203.31,203.27,0.67]
[1756497591902,8.78892124,203.31,203.26,4.91980714]
[1756497592096,13.59559401,203.37,203.27,41.95]
[1756497592328,8.78892124,203.34,203.28,0.67]
[1756497592493,8.78892124,203.34,203.29,41.3]
[1756497592692,8.78892124,203.34,203.3,0.67]
[1756497592918,8.78892124,203.37,203.31,9.45892124]
[1756497593119,14.85676949,203.47,203.32,0.67]
[1756497593120,4.98558318,203.45,203.32,0.67]
[1756497593301,13.638876,203.51,203.39,8.78892124]
[1756497593501,8.78892124,203.44,203.39,9.45892124]
[1756497593725,8.78892124,203.41,203.36,26.67]
[1756497593922,8.78892124,203.39,203.37,41.4]
[1756497594105,13.59559401,203.45,203.33,40.37703465]
[1756497594314,8.78892124,203.4,203.34,50.85892124]
[1756497594504,8.78892124,203.4,203.35,41.4]
[1756497594712,8.78892124,203.39,203.34,0.67]
[1756497595027,8.78892124,203.39,203.33,39.70703465]
[1756497595367,26.0,203.46,203.35,4.9176297]
[1756497595499,13.59559401,203.49,203.36,0.67]
[1756497595700,8.78892124,203.42,203.35,4.9176297]
[1756497595902,8.78892124,203.42,203.36,0.67]
[1756497596131,8.78892124,203.41,203.37,41.4]
[1756497596331,26.0,203.46,203.38,0.67]
[1756497596628,8.78892124,203.44,203.39,8.78892124]
[1756497596812,8.78892124,203.44,203.39,0.67]
[1756497597426,8.78892124,203.41,203.38,4.91690431]
[1756497597619,8.78892124,203.41,203.34,4.91787154]
[1756497597816,8.78892124,203.38,203.34,5.58787154]
[1756497598036,26.0,203.45,203.35,41.36]
[1756497598205,13.59559401,203.44,203.35,0.67]
[1756497598406,8.78892124,203.39,203.35,41.38]
[1756497598631,8.78892124,203.39,203.34,4.91787154]
[1756497598928,8.78892124,203.39,203.35,41.36]
[1756497599136,8.78892124,203.39,203.35,0.67]
[1756497599332,8.78892124,203.39,203.35,5.58761294]
[1756497599637,8.78892124,203.38,203.33,5.58791666]
[1756497599838,8.78892124,203.36,203.32,79.6]
[1756497600046,8.78892124,203.33,203.26,41.99]
[1756497600234,4.91564577,203.44,203.32,8.78892124]
[1756497600412,39.59559401,203.41,203.32,8.78892124]
[1756497600616,39.59559401,203.41,203.33,39.1]
[1756497601027,39.59559401,203.41,203.28,26.0]
[1756497601212,39.59559401,203.41,203.29,0.72]
[1756497601412,8.78892124,203.33,203.25,0.72]
[1756497601665,8.78892124,203.33,203.27,8.78892124]
[1756497601840,8.78892124,203.35,203.29,8.78892124]
[1756497602168,8.78892124,203.35,203.26,41.42]
[1756497602169,8.78892124,203.38,203.32,8.78892124]
[1756497602346,26.0,203.39,203.33,41.42]
[1756497602657,8.78892124,203.43,203.37,8.78892124]
[1756497602878,14.01854481,203.52,203.36,9.50892124]
[1756497602879,8.78892124,203.42,203.36,9.50892124]
[1756497603040,8.78892124,203.43,203.37,8.78892124]
[1756497603249,8.78892124,203.38,203.29,1.21190811]
[1756497603462,13.59559401,203.41,203.3,46.39883915]
[1756497603755,13.59559401,203.41,203.31,0.72]
[1756497603756,8.78892124,203.36,203.31,0.72]
[1756497604137,8.78892124,203.4,203.34,8.78892124]
[1756497604348,26.0,203.42,203.33,8.78892124]
[1756497604349,8.78892124,203.39,203.33,8.78892124]
[1756497604554,8.78892124,203.38,203.32,8.78892124]
[1756497604757,13.59559401,203.45,203.34,50.96892124]
[1756497604952,8.78892124,203.36,203.31,0.72]
[1756497605146,8.78892124,203.33,203.32,41.44]
[1756497605362,34.78892124,203.4,203.32,41.44]
[1756497605363,26.0,203.4,203.32,42.16]
[1756497605553,8.78892124,203.4,203.34,8.78892124]
[1756497605758,8.78892124,203.38,203.33,0.72]
[1756497605939,8.78892124,203.39,203.35,41.44]
[1756497606144,8.78892124,203.39,203.36,42.18]
[1756497606343,8.78892124,203.4,203.36,41.46]
[1756497606546,8.78892124,203.42,203.37,9.50892124]
[1756497606752,8.78892124,203.4,203.38,41.46]
[1756497607085,8.78892124,203.42,203.38,0.72]
[1756497607259,8.78892124,203.41,203.38,0.72]
[1756497607571,13.59559401,203.51,203.4,8.78892124]
[1756497607772,8.78892124,203.48,203.43,8.78892124]
[1756497607975,8.78892124,203.47,203.43,42.24]
[1756497608187,8.78892124,203.49,203.44,9.50892124]
[1756497608484,8.78892124,203.49,203.44,0.72]
[1756497608795,0.2,203.52,203.46,8.78892124]
[1756497608952,0.06,203.47,203.41,0.49161791]
[1756497609154,0.06,203.47,203.46,8.78892124]
[1756497609354,0.2,203.52,203.47,17.20155305]
[1756497609663,0.2,203.52,203.48,41.54]
[1756497609970,0.2,203.52,203.49,41.52]
[1756497610174,0.2,203.52,203.49,42.24]
[1756497610360,0.2,203.52,203.5,41.54]
[1756497610756,8.98892124,203.52,203.5,41.54]
[1756497611178,8.98892124,203.52,203.47,4.91472944]
[1756497611179,0.2,203.52,203.47,5.63472944]
[1756497611484,0.2,203.52,203.49,8.78892124]
[1756497611786,0.2,203.52,203.51,8.78892124]
[1756497612276,0.2,203.52,203.49,0.72]
[1756497612456,0.2,203.52,203.5,42.26]
[1756497612651,0.06,203.55,203.51,8.78892124]
[1756497612856,0.06,203.55,203.54,8.78892124]
[1756497613076,0.06,203.57,203.54,8.78892124]
[1756497613281,0.06,203.57,203.55,42.28]
[1756497613664,0.06,203.57,203.56,42.26]
[1756497613861,0.06,203.57,203.54,0.72]
[1756497614085,0.06,203.57,203.55,41.54]
[1756497614958,0.3015,203.57,203.56,0.72]
[1756497615389,0.3015,203.57,203.55,50.32892124]
[1756497615589,0.3015,203.57,203.56,46.43255649]
[1756497616098,0.3015,203.57,203.56,41.5]
[1756497616265,0.3015,203.57,203.55,4.91277549]
[1756497616596,0.3015,203.57,203.55,41.5]
[1756497616811,0.3015,203.57,203.55,42.22]
[1756497617121,0.3015,203.57,203.56,9.50892124]
[1756497617286,0.3015,203.57,203.56,0.72]
[1756497617491,0.3015,203.57,203.49,0.49142464]
[1756497617813,0.3015,203.57,203.52,14.42229846]
[1756497618001,0.3015,203.57,203.56,8.78892124]
[1756497618181,0.3015,203.57,203.56,50.30892124]
[1756497618387,0.3015,203.57,203.56,51.02892124]
[1756497618973,0.2,203.58,203.56,51.02892124]
[1756497619174,0.2,203.58,203.57,9.50892124]
[1756497619396,0.2,203.58,203.57,0.72]
[1756497619693,0.2,203.58,203.57,55.92123641]
[1756497620070,1e-08,203.58,203.57,55.92123641]
[1756497620474,0.06,203.61,203.57,55.92123641]
[1756497620475,0.06,203.61,203.57,59.4131031]
[1756497620676,0.2,203.63,203.6,8.78892124]
[1756497620880,0.06,203.66,203.62,8.78892124]
[1756497621186,0.06,203.67,203.63,18.29784248]
[1756497621485,0.2,203.69,203.66,8.78892124]
[1756497621699,0.2,203.69,203.68,13.69858345]
[1756497621891,1e-08,203.69,203.68,14.18954967]
[1756497622087,1e-08,203.69,203.68,47.64062843]
[1756497622404,1e-08,203.69,203.68,55.91858345]
[1756497622585,1e-08,203.69,203.68,56.40954967]
[1756497622787,1e-08,203.69,203.68,55.89858345]
[1756497624032,1e-08,203.69,203.68,0.72]
[1756497624303,1e-08,203.69,203.68,50.94892124]
[1756497624687,1e-08,203.69,203.68,50.22892124]
[1756497624889,1e-08,203.69,203.68,50.20892124]
[1756497625204,1e-08,203.69,203.68,8.78892124]
[1756497625394,1e-08,203.69,203.68,41.42]
[1756497625784,8.78892125,203.69,203.68,41.42]
[1756497626202,1e-08,203.69,203.68,41.42]
[1756497627416,8.78892125,203.69,203.68,41.38]
[1756497627583,8.78892125,203.69,203.63,8.78892124]
[1756497627898,8.78892125,203.69,203.62,4.91086945]
[1756497627899,8.78892124,203.68,203.64,4.91062024]
[1756497628101,8.78892124,203.67,203.65,41.34]
[1756497628298,8.78892124,203.68,203.65,41.34]
[1756497628811,1e-08,203.69,203.65,41.34]
[1756497629311,8.78892125,203.69,203.65,41.34]
[1756497629511,8.78892124,203.68,203.65,41.34]
[1756497629816,8.78892124,203.66,203.58,9.50892124]
[1756497630015,8.78892124,203.64,203.59,41.28]
[1756497630328,0.18,203.63,203.52,0.03]
[1756497630495,26.0,203.61,203.55,41.33]
[1756497630888,26.0,203.62,203.55,41.33]
[1756497631128,26.0,203.6,203.55,41.33]
[1756497631311,26.0,203.6,203.55,0.03]
[1756497631312,8.78892124,203.56,203.55,0.03]
[1756497631496,8.78892124,203.56,203.55,41.33]
[1756497631699,0.18,203.65,203.55,55.71171907]
[1756497631907,8.78892124,203.61,203.55,55.71171907]
[1756497632212,34.78892124,203.61,203.55,55.71171907]
[1756497632415,8.78892124,203.61,203.55,67.99371366]
[1756497632600,8.78892124,203.61,203.56,8.78892124]
[1756497632803,8.78892124,203.61,203.57,0.68]
[1756497634015,8.78892124,203.6,203.58,41.28]
[1756497634185,8.78892124,203.6,203.59,41.26]
[1756497634390,8.78892124,203.6,203.57,4.91215793]
[1756497634588,1e-08,203.69,203.6,26.0]
[1756497634801,1e-08,203.69,203.61,1.17113501]
[1756497635129,1e-08,203.69,203.62,41.4]
[1756497635319,1e-08,203.69,203.63,41.4]
[1756497635320,8.78892124,203.67,203.63,41.4]
[1756497636131,1e-08,203.69,203.63,46.99082853]
[1756497636132,8.78892124,203.68,203.63,46.99082853]
[1756497636293,8.78892125,203.69,203.64,0.68]
[1756497636819,8.78892124,203.68,203.63,46.31082853]
[1756497637018,8.78892124,203.66,203.63,46.31082853]
[1756497637229,8.78892124,203.66,203.55,0.52127978]
[1756497637230,0.66,203.65,203.55,0.52127978]
[1756497637418,8.78892124,203.59,203.55,0.03]
[1756497637805,8.78892124,203.61,203.56,8.78892124]
[1756497638000,8.78892124,203.6,203.55,0.03]
[1756497638205,8.78892124,203.61,203.55,0.71]
[1756497638413,26.0,203.62,203.55,0.71]
[1756497638414,26.0,203.62,203.55,9.49892124]
[1756497638623,26.0,203.63,203.55,9.49892124]
[1756497638926,8.78892124,203.6,203.55,0.71]
[1756497639130,8.78892124,203.61,203.55,9.49892124]
[1756497639309,8.78892124,203.61,203.56,41.38]
[1756497639716,8.78892124,203.6,203.56,41.38]
[1756497640148,8.78892124,203.6,203.57,4.91231517]
[1756497640306,0.66,203.64,203.57,4.91231517]
[1756497640307,8.78892124,203.61,203.57,4.91231517]
[1756497640632,8.78892124,203.6,203.56,41.38]
[1756497640838,8.78892124,203.59,203.55,0.03]
[1756497641159,8.78892124,203.56,203.55,0.03]
[1756497641628,0.66,203.56,203.55,0.03]
[1756497641829,9.44892124,203.56,203.55,0.03]
[1756497642132,8.78892124,203.57,203.55,0.03]
[1756497642320,34.78892124,203.58,203.55,0.03]
[1756497642508,8.78892124,203.57,203.55,0.03]
[1756497642713,8.78892124,203.56,203.55,0.03]
[1756497643205,26.66,203.56,203.55,0.03]
[1756497643620,35.44892124,203.56,203.55,0.03]
[1756497643822,34.78892124,203.56,203.55,0.03]
[1756497644038,8.78892124,203.57,203.55,0.03]
[1756497644332,8.78892124,203.56,203.55,0.03]
[1756497646026,26.0,203.59,203.55,0.03]
[1756497646225,8.78892124,203.57,203.55,0.03]
[1756497647231,26.0,203.59,203.55,0.03]
[1756497647232,8.78892124,203.56,203.55,0.03]
[1756497647530,26.66,203.59,203.55,0.03]
[1756497647531,26.0,203.59,203.55,0.03]
[1756497647719,8.78892124,203.57,203.55,0.03]
[1756497648136,9.44892124,203.56,203.55,0.03]
[1756497648935,27.95707174,203.56,203.55,0.03]
[1756497649140,27.95707174,203.56,203.54,0.03]
[1756497649141,13.59559401,203.55,203.54,0.03]
[1756497649436,22.38451525,203.55,203.54,0.03]
[1756497649614,23.04451525,203.55,203.54,0.03]
[1756497650410,27.95731308,203.55,203.54,0.03]
[1756497650815,9.44892124,203.55,203.54,0.03]
[1756497651138,34.78892124,203.55,203.54,0.03]
[1756497651616,40.36171907,203.55,203.54,0.03]
[1756497652232,53.95731308,203.55,203.54,0.03]
[1756497652454,27.95731308,203.55,203.54,0.03]
[1756497652826,53.95731308,203.55,203.54,0.03]
[1756497653026,27.95731308,203.55,203.54,0.03]
[1756497654028,53.95731308,203.55,203.54,0.03]
[1756497654233,27.95731308,203.55,203.54,0.03]
[1756497655342,53.95731308,203.55,203.54,0.03]
[1756497655631,27.95731308,203.55,203.54,0.03]
[1756497656839,39.59559401,203.53,203.52,0.03]
[1756497657039,57.17343649,203.53,203.52,0.03]
[1756497657237,57.83343649,203.53,203.52,0.03]
[1756497657630,22.38451525,203.51,203.5,0.03]
[1756497658137,23.04451525,203.51,203.5,0.03]
[1756497658333,23.04451525,203.51,203.4,0.68]
[1756497658334,26.0,203.47,203.4,0.68]
[1756497658645,8.78892124,203.42,203.4,0.68]
[1756497659038,8.78892124,203.42,203.41,0.68]
[1756497660146,8.78892124,203.42,203.36,8.88892124]
[1756497660147,8.78892124,203.42,203.38,0.68]
[1756497660339,3.95254693,203.46,203.38,0.68]
[1756497660652,8.78892124,203.39,203.38,0.68]
[1756497661848,8.78892124,203.4,203.38,0.68]
[1756497662050,8.78892124,203.4,203.39,4.91666256]
[1756497662359,8.78892124,203.4,203.39,5.62666256]
[1756497662660,26.0,203.43,203.39,5.62666256]
[1756497662847,8.78892124,203.4,203.39,4.91666256]
[1756497663448,8.78892124,203.4,203.39,5.62666256]
[1756497663667,4.91352201,203.52,203.39,14.4155838]
[1756497663836,8.78892124,203.45,203.4,9.49892124]
[1756497664038,8.78892124,203.45,203.41,5.62617914]
[1756497664345,8.78892124,203.43,203.42,0.71]
[1756497664541,8.78892124,203.44,203.42,0.71]
[1756497664864,8.78892124,203.45,203.42,0.71]
[1756497665063,8.78892124,203.45,203.43,0.71]
[1756497665272,5.59332033,203.53,203.44,0.71]
[1756497665478,8.78892124,203.46,203.44,0.71]
[1756497665648,8.78892124,203.45,203.41,0.71]
[1756497665965,8.78892124,203.42,203.38,5.62670796]
[1756497666152,8.78892124,203.41,203.39,0.71]
[1756497666459,8.78892124,203.41,203.36,0.1]
[1756497666460,8.78892124,203.4,203.37,0.71]
[1756497666671,8.78892124,203.38,203.37,0.71]
[1756497667465,8.78892124,203.39,203.37,0.71]
[1756497667872,8.78892124,203.38,203.36,0.1]
[1756497668074,8.78892124,203.37,203.36,0.1]
[1756497669091,26.0,203.43,203.36,5.72738016]
[1756497669280,8.78892124,203.4,203.36,5.72738016]
[1756497669480,26.0,203.43,203.37,0.71]
[1756497669683,8.78892124,203.41,203.37,0.71]
[1756497669898,8.78892124,203.42,203.37,9.49892124]
[1756497670090,8.78892124,203.43,203.38,0.71]
[1756497670272,8.78892124,203.43,203.39,0.71]
[1756497670473,8.78892124,203.42,203.36,5.72738016]
[1756497670678,0.68,203.47,203.37,0.71]
[1756497670900,8.78892124,203.43,203.37,9.49892124]
[1756497671094,8.78892124,203.42,203.37,9.49892124]
[1756497671397,8.78892124,203.42,203.38,4.91690431]
[1756497671582,26.0,203.49,203.38,5.62690431]
[1756497671767,8.78892124,203.45,203.4,8.78892124]
[1756497671968,8.78892124,203.44,203.41,0.71]
[1756497672373,26.0,203.49,203.42,0.71]
[1756497672586,8.78892124,203.46,203.42,0.71]
[1756497672797,8.78892124,203.45,203.38,4.91690431]
[1756497673100,8.78892124,203.43,203.38,5.62690431]
[1756497673297,8.78892124,203.43,203.39,0.71]
[1756497673481,8.78892124,203.43,203.4,0.71]
[1756497673686,8.78892124,203.45,203.41,0.71]
[1756497673874,8.78892124,203.45,203.42,0.71]
[1756497674605,8.78892124,203.45,203.39,8.78892124]
[1756497674606,8.78892124,203.45,203.39,0.71]
[1756497674778,8.78892124,203.45,203.39,9.49892124]
[1756497674980,8.78892124,203.45,203.39,0.71]
[1756497675180,8.78892124,203.41,203.36,0.81]
[1756497675382,8.78892124,203.44,203.36,0.81]
[1756497675796,8.78892124,203.45,203.36,5.72728845]
[1756497676002,26.0,203.49,203.36,5.72728845]
[1756497676003,26.0,203.49,203.43,8.78892124]
[1756497676178,8.78892124,203.49,203.44,9.49892124]
[1756497676377,8.78892124,203.49,203.39,26.0]
[1756497676378,8.78892124,203.52,203.46,8.78892124]
[1756497676579,8.78892124,203.51,203.46,8.78892124]
[1756497676801,8.78892124,203.51,203.47,0.71]
[1756497677303,8.78892124,203.51,203.48,0.71]
[1756497677598,8.78892124,203.52,203.48,0.71]
[1756497677786,8.78892124,203.49,203.4,1.20164208]
[1756497677987,8.78892124,203.46,203.4,0.71]
[1756497678185,8.78892124,203.45,203.4,9.49892124]
[1756497678386,8.78892124,203.46,203.41,0.71]
[1756497678596,8.78892124,203.46,203.42,0.71]
[1756497678990,26.68,203.49,203.42,0.71]
[1756497679878,0.06,203.5,203.43,13.70461705]
[1756497680082,8.78892124,203.48,203.43,4.91569581]